[Event "November 21 Late 2023"]
[Site "https://www.chess.com"]
[Date "2023.11.21"]
[Round "2"]
[White "Schnaider, Ilan"]
[Black "PapaieDudu"]
[Result "1-0"]
[Board "68"]
[TimeControl "180+1"]
[WhiteFideId "169013"]
[WhiteElo "2373"]
[BlackElo "2375"]
[WhiteTeam "ARG"]
[WhiteClock "0:00:10"]
[BlackClock "0:00:06"]

1. Nf3 {[%clk 0:03:00]}  d5 {[%clk 0:03:00]} 2. g3 {[%clk 0:03:00]}  e6 {[%clk 0:03:00]} 3. Bg2 {[%clk 0:03:00]}  Nf6 {[%clk 0:03:01]} 4. c4 {[%clk 0:03:00]}  Be7 {[%clk 0:03:01]} 5. d4 {[%clk 0:03:01]}  O-O {[%clk 0:03:01]} 6. O-O {[%clk 0:03:01]}  dxc4 {[%clk 0:03:01]} 7. Qc2 {[%clk 0:03:01]}  a6 {[%clk 0:03:01]} 8. a4 {[%clk 0:03:02]}  Nbd7 {[%clk 0:03:01]} 9. Qxc4 {[%clk 0:03:00]}  b5 {[%clk 0:03:01]} 10. Qc6 {[%clk 0:02:52]}  Rb8 {[%clk 0:03:01]} 11. axb5 {[%clk 0:02:52]}  Bb7 {[%clk 0:02:56]} 12. Qc2 {[%clk 0:02:46]}  axb5 {[%clk 0:02:56]} 13. Bf4 {[%clk 0:02:40]}  Nd5 {[%clk 0:02:56]} 14. Nc3 {[%clk 0:02:35]}  Nxf4 {[%clk 0:02:53]} 15. gxf4 {[%clk 0:02:36]}  Bd6 {[%clk 0:02:44]} 16. e3 {[%clk 0:02:32]}  Nf6 {[%clk 0:02:40]} 17. Ne5 {[%clk 0:02:25]}  Bxg2 {[%clk 0:02:36]} 18. Kxg2 {[%clk 0:02:26]}  Nd5 {[%clk 0:02:28]} 19. Nxd5 {[%clk 0:02:23]}  exd5 {[%clk 0:02:29]} 20. Nc6 {[%clk 0:02:22]}  Qh4 {[%clk 0:02:27]} 21. Qf5 {[%clk 0:02:16]}  Rbe8 {[%clk 0:02:16]} 22. Ne5 {[%clk 0:02:13]}  Re6 {[%clk 0:02:10]} 23. Nf3 {[%clk 0:02:07]}  Qe7 {[%clk 0:02:07]} 24. Qxd5 {[%clk 0:02:04]}  Rd8 {[%clk 0:01:57]} 25. Ra8 {[%clk 0:02:00]}  h6 {[%clk 0:01:39]} 26. f5 {[%clk 0:01:53]}  Rf6 {[%clk 0:01:32]} 27. e4 {[%clk 0:01:51]}  c6 {[%clk 0:01:15]} 28. Qxc6 {[%clk 0:01:40]}  Bxh2 {[%clk 0:01:13]} 29. Rxd8+ {[%clk 0:01:15]}  Qxd8 {[%clk 0:01:14]} 30. Qxb5 {[%clk 0:01:16]}  Bf4 {[%clk 0:01:03]} 31. Qd3 {[%clk 0:01:09]}  g6 {[%clk 0:01:01]} 32. Rg1 {[%clk 0:01:05]}  Qc8 {[%clk 0:00:53]} 33. Kh1 {[%clk 0:00:37]}  Kh8 {[%clk 0:00:37]} 34. Ne5 {[%clk 0:00:33]}  gxf5 {[%clk 0:00:27]} 35. exf5 {[%clk 0:00:29]}  Qb7+ {[%clk 0:00:18]} 36. Nf3 {[%clk 0:00:14]}  Qd5 {[%clk 0:00:15]} 37. Rg4 {[%clk 0:00:09]}  Rxf5 {[%clk 0:00:13]} 38. Kg2 {[%clk 0:00:09]}  h5 {[%clk 0:00:12]} 39. Rh4 {[%clk 0:00:09]}  Kg7 {[%clk 0:00:10]} 40. Kf1 {[%clk 0:00:09]}  Bh6 {[%clk 0:00:09]} 41. Rh3 {[%clk 0:00:09]}  Qe6 {[%clk 0:00:06]} 42. Rg3+ {[%clk 0:00:09]}  Kh8 {[%clk 0:00:04]} 43. Nh4 {[%clk 0:00:06]}  Rf6 {[%clk 0:00:02]} 44. d5 {[%clk 0:00:06]}  Qe5 {[%clk 0:00:01]} 45. Qc3 {[%clk 0:00:06]}  Qxc3 {[%clk 0:00:01]} 46. bxc3 {[%clk 0:00:06]}  Bf8 {[%clk 0:00:01]} 47. Rf3 {[%clk 0:00:05]}  Rd6 {[%clk 0:00:01]} 48. Rxf7 {[%clk 0:00:05]}  Bg7 {[%clk 0:00:02]} 49. Rxg7 {[%clk 0:00:05]}  Rxd5 {[%clk 0:00:01]} 50. Ra7 {[%clk 0:00:04]}  Rc5 {[%clk 0:00:01]} 51. Ng6+ {[%clk 0:00:04]}  Kg8 {[%clk 0:00:01]} 52. Nf4 {[%clk 0:00:04]}  Rc4 {[%clk 0:00:01]} 53. Nxh5 {[%clk 0:00:04]}  Rxc3 {[%clk 0:00:02]} 54. Ng3 {[%clk 0:00:05]}  Kf8 {[%clk 0:00:02]} 55. Kg2 {[%clk 0:00:05]}  Rc1 {[%clk 0:00:02]} 56. Ra4 {[%clk 0:00:05]}  Ke8 {[%clk 0:00:03]} 57. Rf4 {[%clk 0:00:06]}  Rb1 {[%clk 0:00:04]} 58. Rf3 {[%clk 0:00:07]}  Ke7 {[%clk 0:00:04]} 59. Re3+ {[%clk 0:00:08]}  Kf6 {[%clk 0:00:05]} 60. f4 {[%clk 0:00:08]}  Kg6 {[%clk 0:00:05]} 61. Kf3 {[%clk 0:00:08]}  Kf7 {[%clk 0:00:06]} 62. Kg4 {[%clk 0:00:09]}  Kg8 {[%clk 0:00:06]} 63. Kg5 {[%clk 0:00:09]}  Kf7 {[%clk 0:00:07]} 64. Nf5 {[%clk 0:00:09]}  Rg1+ {[%clk 0:00:07]} 65. Ng3 {[%clk 0:00:09]}  Kg7 {[%clk 0:00:07]} 66. f5 {[%clk 0:00:10]}  Kf7 {[%clk 0:00:06]} 67. f6 {[%clk 0:00:11]}  Rf1 {[%clk 0:00:06]} 68. Re7+ {[%clk 0:00:10]}  Kf8 {[%clk 0:00:06]} 69. Nxf1 {[%clk 0:00:08]}  Kg8 {[%clk 0:00:06]} 70. Kg6 {[%clk 0:00:08]}  Kf8 {[%clk 0:00:06]} 71. Ng3 {[%clk 0:00:09]}  Kg8 {[%clk 0:00:06]} 72. Re8# {[%clk 0:00:10]} 1-0

[Event "November 21 Late 2023"]
[Site "https://www.chess.com"]
[Date "2023.11.21"]
[Round "2"]
[White "Gubajdullin, Alexei"]
[Black "gpsji27"]
[Result "0-1"]
[Board "72"]
[TimeControl "180+1"]
[WhiteFideId "4141202"]
[WhiteElo "2280"]
[BlackElo "2318"]
[WhiteTeam "RUS"]
[WhiteClock "0:00:19"]
[BlackClock "0:00:16"]

1. d4 {[%clk 0:02:59]}  d5 {[%clk 0:02:59]} 2. Nf3 {[%clk 0:02:59]}  Nf6 {[%clk 0:02:59]} 3. Bf4 {[%clk 0:02:59]}  c5 {[%clk 0:02:58]} 4. e3 {[%clk 0:02:59]}  Nc6 {[%clk 0:02:58]} 5. Nbd2 {[%clk 0:02:59]}  Bf5 {[%clk 0:02:51]} 6. dxc5 {[%clk 0:02:47]}  e6 {[%clk 0:02:26]} 7. Nd4 {[%clk 0:02:47]}  Bxc5 {[%clk 0:02:14]} 8. Nxf5 {[%clk 0:02:46]}  exf5 {[%clk 0:02:15]} 9. Nb3 {[%clk 0:02:46]}  Bd6 {[%clk 0:02:13]} 10. Bxd6 {[%clk 0:02:43]}  Qxd6 {[%clk 0:02:13]} 11. Bd3 {[%clk 0:02:42]}  g6 {[%clk 0:02:11]} 12. c4 {[%clk 0:02:32]}  dxc4 {[%clk 0:02:06]} 13. Bxc4 {[%clk 0:02:26]}  Qb4+ {[%clk 0:01:58]} 14. Nd2 {[%clk 0:02:25]}  O-O-O {[%clk 0:01:47]} 15. a3 {[%clk 0:02:18]}  Qxb2 {[%clk 0:01:19]} 16. Rb1 {[%clk 0:02:09]}  Qc3 {[%clk 0:01:19]} 17. Rc1 {[%clk 0:01:54]}  Qa5 {[%clk 0:01:17]} 18. Qc2 {[%clk 0:01:32]}  Ne4 {[%clk 0:01:14]} 19. Bd3 {[%clk 0:01:32]}  Rxd3 {[%clk 0:00:58]} 20. O-O {[%clk 0:01:08]}  Rxd2 {[%clk 0:00:55]} 21. Qc4 {[%clk 0:01:08]}  Qd5 {[%clk 0:00:53]} 22. Qa4 {[%clk 0:01:07]}  Kb8 {[%clk 0:00:50]} 23. Rb1 {[%clk 0:01:06]}  Nc3 {[%clk 0:00:47]} 24. Qf4+ {[%clk 0:01:04]}  Qd6 {[%clk 0:00:40]} 25. Rxb7+ {[%clk 0:00:50]}  Kxb7 {[%clk 0:00:38]} 26. Qc4 {[%clk 0:00:50]}  Ne2+ {[%clk 0:00:27]} 27. Kh1 {[%clk 0:00:49]}  Rd1 {[%clk 0:00:27]} 28. Qxe2 {[%clk 0:00:48]}  Rxf1+ {[%clk 0:00:27]} 29. Qxf1 {[%clk 0:00:48]}  Rd8 {[%clk 0:00:28]} 30. Qb5+ {[%clk 0:00:45]}  Ka8 {[%clk 0:00:27]} 31. h3 {[%clk 0:00:41]}  Qc7 {[%clk 0:00:25]} 32. g3 {[%clk 0:00:36]}  Qb7 {[%clk 0:00:24]} 33. Qc5 {[%clk 0:00:23]}  Ne5+ {[%clk 0:00:20]} 34. Kh2 {[%clk 0:00:21]}  Nf3+ {[%clk 0:00:20]} 35. Kg2 {[%clk 0:00:21]}  Ne1+ {[%clk 0:00:19]} 36. Kf1 {[%clk 0:00:21]}  Qg2+ {[%clk 0:00:16]} 37. Kxe1 {[%clk 0:00:20]}  Qg1+ {[%clk 0:00:15]} 38. Ke2 {[%clk 0:00:19]}  Qd1# {[%clk 0:00:16]} 0-1

[Event "November 21 Late 2023"]
[Site "https://www.chess.com"]
[Date "2023.11.21"]
[Round "2"]
[White "Hamitevici, Vladimir"]
[Black "OKEKE, Isaac Chukwudalu"]
[Result "1-0"]
[Board "74"]
[TimeControl "180+1"]
[WhiteFideId "13902393"]
[BlackFideId "8508526"]
[WhiteElo "2405"]
[BlackElo "2161"]
[WhiteTeam "MDA"]
[BlackTeam "NGR"]
[WhiteClock "0:00:18"]
[BlackClock "0:00:00"]

1. c4 {[%clk 0:02:59]}  e5 {[%clk 0:02:59]} 2. a3 {[%clk 0:02:58]}  Nf6 {[%clk 0:02:58]} 3. d3 {[%clk 0:02:59]}  d5 {[%clk 0:02:56]} 4. cxd5 {[%clk 0:03:00]}  Nxd5 {[%clk 0:02:56]} 5. Nf3 {[%clk 0:03:00]}  Nc6 {[%clk 0:02:55]} 6. e4 {[%clk 0:03:01]}  Nf6 {[%clk 0:02:53]} 7. Qc2 {[%clk 0:02:57]}  Bg4 {[%clk 0:02:52]} 8. Nbd2 {[%clk 0:02:57]}  a5 {[%clk 0:02:42]} 9. Be2 {[%clk 0:02:43]}  Be7 {[%clk 0:02:35]} 10. O-O {[%clk 0:02:39]}  O-O {[%clk 0:02:35]} 11. h3 {[%clk 0:02:38]}  Bxf3 {[%clk 0:02:22]} 12. Nxf3 {[%clk 0:02:38]}  a4 {[%clk 0:02:22]} 13. Be3 {[%clk 0:02:35]}  Qd6 {[%clk 0:02:13]} 14. Rac1 {[%clk 0:02:34]}  Rfd8 {[%clk 0:02:12]} 15. Rfd1 {[%clk 0:02:32]}  Qe6 {[%clk 0:02:07]} 16. Ng5 {[%clk 0:02:21]}  Qd7 {[%clk 0:01:59]} 17. Qc4 {[%clk 0:02:18]}  Bf8 {[%clk 0:01:58]} 18. Nf3 {[%clk 0:02:17]}  Ne8 {[%clk 0:01:47]} 19. d4 {[%clk 0:02:14]}  Nd6 {[%clk 0:01:47]} 20. Qc2 {[%clk 0:02:05]}  exd4 {[%clk 0:01:45]} 21. Nxd4 {[%clk 0:02:06]}  Nxd4 {[%clk 0:01:42]} 22. Rxd4 {[%clk 0:02:03]}  Qe7 {[%clk 0:01:32]} 23. Qxc7 {[%clk 0:01:57]}  Rd7 {[%clk 0:01:13]} 24. Qc2 {[%clk 0:01:52]}  Rc8 {[%clk 0:01:07]} 25. Qxa4 {[%clk 0:01:46]}  Rxc1+ {[%clk 0:01:06]} 26. Bxc1 {[%clk 0:01:47]}  Rc7 {[%clk 0:01:06]} 27. Bf4 {[%clk 0:01:44]}  Rc6 {[%clk 0:00:56]} 28. Bf3 {[%clk 0:01:25]}  b5 {[%clk 0:00:52]} 29. Qb3 {[%clk 0:01:18]}  Qa7 {[%clk 0:00:50]} 30. Rxd6 {[%clk 0:00:41]}  Bxd6 {[%clk 0:00:43]} 31. e5 {[%clk 0:00:41]}  Rc4 {[%clk 0:00:38]} 32. Be3 {[%clk 0:00:29]}  Qd7 {[%clk 0:00:07]} 33. exd6 {[%clk 0:00:28]}  Qxd6 {[%clk 0:00:08]} 34. Qxb5 {[%clk 0:00:26]}  Rc8 {[%clk 0:00:08]} 35. g3 {[%clk 0:00:25]}  h6 {[%clk 0:00:06]} 36. Kg2 {[%clk 0:00:26]}  Qf6 {[%clk 0:00:03]} 37. a4 {[%clk 0:00:22]}  Rc2 {[%clk 0:00:03]} 38. b4 {[%clk 0:00:19]}  Qe5 {[%clk 0:00:00]} 39. Qxe5 {[%clk 0:00:18]} 1-0

[Event "November 21 Late 2023"]
[Site "https://www.chess.com"]
[Date "2023.11.21"]
[Round "2"]
[White "Krishnan, Varun"]
[Black "campochess"]
[Result "1-0"]
[Board "76"]
[TimeControl "180+1"]
[WhiteFideId "5054508"]
[WhiteElo "2341"]
[BlackElo "2242"]
[WhiteTeam "USA"]
[WhiteClock "0:00:16"]
[BlackClock "0:01:12"]

1. d4 {[%clk 0:02:57]}  c5 {[%clk 0:02:59]} 2. e4 {[%clk 0:02:54]}  cxd4 {[%clk 0:02:59]} 3. c3 {[%clk 0:02:55]}  Nf6 {[%clk 0:02:56]} 4. e5 {[%clk 0:02:54]}  Nd5 {[%clk 0:02:56]} 5. cxd4 {[%clk 0:02:54]}  d6 {[%clk 0:02:55]} 6. Nf3 {[%clk 0:02:53]}  Nc6 {[%clk 0:02:50]} 7. Bc4 {[%clk 0:02:39]}  e6 {[%clk 0:02:49]} 8. O-O {[%clk 0:02:38]}  Be7 {[%clk 0:02:47]} 9. Qe2 {[%clk 0:02:28]}  Nb6 {[%clk 0:02:46]} 10. Bb3 {[%clk 0:02:25]}  d5 {[%clk 0:02:46]} 11. Nc3 {[%clk 0:02:22]}  a6 {[%clk 0:02:45]} 12. a4 {[%clk 0:02:22]}  Na5 {[%clk 0:02:43]} 13. Bc2 {[%clk 0:02:20]}  Bd7 {[%clk 0:02:43]} 14. b3 {[%clk 0:02:13]}  Rc8 {[%clk 0:02:42]} 15. Bb2 {[%clk 0:02:13]}  Bb4 {[%clk 0:02:27]} 16. Na2 {[%clk 0:02:12]}  Be7 {[%clk 0:02:24]} 17. Rac1 {[%clk 0:02:01]}  Nc6 {[%clk 0:02:24]} 18. Bc3 {[%clk 0:01:55]}  Ba3 {[%clk 0:02:19]} 19. Rb1 {[%clk 0:01:52]}  Be7 {[%clk 0:02:18]} 20. g3 {[%clk 0:01:50]}  O-O {[%clk 0:02:16]} 21. h4 {[%clk 0:01:48]}  f5 {[%clk 0:02:15]} 22. exf6 {[%clk 0:01:44]}  Rxf6 {[%clk 0:02:12]} 23. a5 {[%clk 0:01:18]}  Na8 {[%clk 0:02:11]} 24. Ng5 {[%clk 0:01:13]}  Rh6 {[%clk 0:02:06]} 25. Qd3 {[%clk 0:00:54]}  Bxg5 {[%clk 0:02:03]} 26. hxg5 {[%clk 0:00:54]}  Qxg5 {[%clk 0:02:03]} 27. Bd2 {[%clk 0:00:50]}  Qh5 {[%clk 0:01:59]} 28. Bxh6 {[%clk 0:00:50]}  Qxh6 {[%clk 0:01:59]} 29. Kg2 {[%clk 0:00:49]}  Nc7 {[%clk 0:01:56]} 30. Rh1 {[%clk 0:00:49]}  Qg6 {[%clk 0:01:52]} 31. Qd2 {[%clk 0:00:42]}  Qf6 {[%clk 0:01:48]} 32. Bxh7+ {[%clk 0:00:41]}  Kf8 {[%clk 0:01:47]} 33. Rh4 {[%clk 0:00:37]}  Ke7 {[%clk 0:01:35]} 34. Nb4 {[%clk 0:00:33]}  Nb5 {[%clk 0:01:31]} 35. Re1 {[%clk 0:00:26]}  Ncxd4 {[%clk 0:01:26]} 36. Nxd5+ {[%clk 0:00:25]}  Kd8 {[%clk 0:01:22]} 37. Nxf6 {[%clk 0:00:25]}  gxf6 {[%clk 0:01:21]} 38. Rxd4 {[%clk 0:00:24]}  Nxd4 {[%clk 0:01:18]} 39. Qxd4 {[%clk 0:00:25]}  Ke7 {[%clk 0:01:18]} 40. Qb4+ {[%clk 0:00:17]}  Kf7 {[%clk 0:01:12]} 41. Qxb7 {[%clk 0:00:16]} 1-0

[Event "November 21 Late 2023"]
[Site "https://www.chess.com"]
[Date "2023.11.21"]
[Round "2"]
[White "Orphanator2009"]
[Black "Arabidze, Meri"]
[Result "1-0"]
[Board "78"]
[TimeControl "180+1"]
[BlackFideId "13604040"]
[WhiteElo "2212"]
[BlackElo "2416"]
[BlackTeam "GEO"]
[WhiteClock "0:00:10"]
[BlackClock "0:00:00"]

1. e4 {[%clk 0:03:00]}  c5 {[%clk 0:03:00]} 2. Nf3 {[%clk 0:03:00]}  e6 {[%clk 0:03:01]} 3. d4 {[%clk 0:03:01]}  cxd4 {[%clk 0:03:02]} 4. Nxd4 {[%clk 0:03:02]}  Nc6 {[%clk 0:03:02]} 5. Nc3 {[%clk 0:03:01]}  a6 {[%clk 0:03:02]} 6. Be3 {[%clk 0:03:01]}  Qc7 {[%clk 0:03:01]} 7. a3 {[%clk 0:02:59]}  Nf6 {[%clk 0:03:01]} 8. Be2 {[%clk 0:02:58]}  Be7 {[%clk 0:02:59]} 9. O-O {[%clk 0:02:58]}  O-O {[%clk 0:03:00]} 10. Qd2 {[%clk 0:02:57]}  d6 {[%clk 0:02:55]} 11. Rad1 {[%clk 0:02:56]}  Bd7 {[%clk 0:02:55]} 12. f4 {[%clk 0:02:54]}  Nxd4 {[%clk 0:02:55]} 13. Bxd4 {[%clk 0:02:52]}  Bc6 {[%clk 0:02:55]} 14. Bf3 {[%clk 0:02:52]}  b5 {[%clk 0:02:43]} 15. f5 {[%clk 0:02:11]}  e5 {[%clk 0:02:40]} 16. Be3 {[%clk 0:02:10]}  h6 {[%clk 0:02:39]} 17. Nd5 {[%clk 0:01:54]}  Bxd5 {[%clk 0:02:38]} 18. exd5 {[%clk 0:01:55]}  Rac8 {[%clk 0:02:37]} 19. c3 {[%clk 0:01:55]}  Rfe8 {[%clk 0:02:34]} 20. Be2 {[%clk 0:01:54]}  Nh7 {[%clk 0:02:31]} 21. Qd3 {[%clk 0:01:48]}  Qd8 {[%clk 0:02:24]} 22. Bf3 {[%clk 0:01:38]}  Bg5 {[%clk 0:02:23]} 23. Bf2 {[%clk 0:01:36]}  Rc4 {[%clk 0:02:19]} 24. Rfe1 {[%clk 0:01:35]}  Bh4 {[%clk 0:02:02]} 25. g3 {[%clk 0:01:25]}  Bg5 {[%clk 0:02:02]} 26. Re4 {[%clk 0:01:25]}  Qc8 {[%clk 0:01:56]} 27. Rde1 {[%clk 0:01:20]}  Nf6 {[%clk 0:01:53]} 28. Rxc4 {[%clk 0:01:19]}  bxc4 {[%clk 0:01:54]} 29. Qc2 {[%clk 0:01:19]}  Nd7 {[%clk 0:01:50]} 30. Be4 {[%clk 0:01:15]}  Nc5 {[%clk 0:01:49]} 31. Kg2 {[%clk 0:01:03]}  Qc7 {[%clk 0:01:44]} 32. Rb1 {[%clk 0:00:57]}  Rb8 {[%clk 0:01:43]} 33. Bxc5 {[%clk 0:00:53]}  Qxc5 {[%clk 0:01:43]} 34. b4 {[%clk 0:00:53]}  cxb3 {[%clk 0:01:35]} 35. Rxb3 {[%clk 0:00:53]}  Rc8 {[%clk 0:01:36]} 36. Qd3 {[%clk 0:00:51]}  a5 {[%clk 0:01:33]} 37. Qb5 {[%clk 0:00:45]}  Qe3 {[%clk 0:01:29]} 38. Qd3 {[%clk 0:00:42]}  Qc1 {[%clk 0:01:25]} 39. Qc2 {[%clk 0:00:40]}  Qe1 {[%clk 0:01:22]} 40. c4 {[%clk 0:00:31]}  a4 {[%clk 0:01:05]} 41. Rb4 {[%clk 0:00:10]}  Qe3 {[%clk 0:00:54]} 42. Rxa4 {[%clk 0:00:10]}  h5 {[%clk 0:00:50]} 43. Rb4 {[%clk 0:00:10]}  h4 {[%clk 0:00:50]} 44. Rb3 {[%clk 0:00:10]}  Qe1 {[%clk 0:00:48]} 45. Rb1 {[%clk 0:00:10]}  Qe3 {[%clk 0:00:47]} 46. Rb3 {[%clk 0:00:11]}  Qd4 {[%clk 0:00:48]} 47. Qd3 {[%clk 0:00:11]}  Qa1 {[%clk 0:00:46]} 48. Qc2 {[%clk 0:00:10]}  f6 {[%clk 0:00:36]} 49. Qb2 {[%clk 0:00:10]}  Qe1 {[%clk 0:00:35]} 50. Qc2 {[%clk 0:00:10]}  Kh7 {[%clk 0:00:30]} 51. Rb7 {[%clk 0:00:09]}  Be3 {[%clk 0:00:26]} 52. Rb1 {[%clk 0:00:09]}  Qa5 {[%clk 0:00:21]} 53. Qe2 {[%clk 0:00:09]}  Bh6 {[%clk 0:00:20]} 54. Bf3 {[%clk 0:00:09]}  hxg3 {[%clk 0:00:19]} 55. hxg3 {[%clk 0:00:09]}  Qxa3 {[%clk 0:00:20]} 56. Bh5 {[%clk 0:00:09]}  Qc3 {[%clk 0:00:19]} 57. Bg6+ {[%clk 0:00:10]}  Kh8 {[%clk 0:00:18]} 58. Rb7 {[%clk 0:00:10]}  Qd4 {[%clk 0:00:18]} 59. Qc2 {[%clk 0:00:09]}  e4 {[%clk 0:00:18]} 60. Qb3 {[%clk 0:00:09]}  e3 {[%clk 0:00:17]} 61. Rb8 {[%clk 0:00:09]}  Qe4+ {[%clk 0:00:17]} 62. Kh2 {[%clk 0:00:09]}  Qxc4 {[%clk 0:00:03]} 63. Qxc4 {[%clk 0:00:09]}  Rxb8 {[%clk 0:00:03]} 64. Kg2 {[%clk 0:00:09]}  Rf8 {[%clk 0:00:03]} 65. Kf3 {[%clk 0:00:09]}  Bg5 {[%clk 0:00:03]} 66. Qg4 {[%clk 0:00:09]}  Bh6 {[%clk 0:00:03]} 67. Qh5 {[%clk 0:00:10]}  Rd8 {[%clk 0:00:03]} 68. Bf7 {[%clk 0:00:10]}  Rc8 {[%clk 0:00:03]} 69. Be6 {[%clk 0:00:10]}  Rb8 {[%clk 0:00:02]} 70. Qf7 {[%clk 0:00:10]}  Ra8 {[%clk 0:00:01]} 71. Bd7 {[%clk 0:00:10]}  Rb8 {[%clk 0:00:01]} 72. Be8 {[%clk 0:00:10]}  Kh7 {[%clk 0:00:00]} 73. Qf8 {[%clk 0:00:10]} 1-0

[Event "November 21 Late 2023"]
[Site "https://www.chess.com"]
[Date "2023.11.21"]
[Round "2"]
[White "Fernandez Hernandez, Gerardo"]
[Black "Krysa, Leandro"]
[Result "0-1"]
[Board "80"]
[TimeControl "180+1"]
[WhiteFideId "2207400"]
[BlackFideId "116807"]
[WhiteElo "2143"]
[BlackElo "2495"]
[WhiteTeam "ESP"]
[BlackTeam "ARG"]
[WhiteClock "0:00:02"]
[BlackClock "0:01:41"]

1. e4 {[%clk 0:03:00]}  e5 {[%clk 0:02:59]} 2. Nf3 {[%clk 0:03:00]}  Nc6 {[%clk 0:02:59]} 3. d4 {[%clk 0:03:00]}  exd4 {[%clk 0:03:00]} 4. Bc4 {[%clk 0:03:01]}  Nf6 {[%clk 0:02:57]} 5. e5 {[%clk 0:03:01]}  d5 {[%clk 0:02:56]} 6. Bb5 {[%clk 0:03:01]}  Nd7 {[%clk 0:02:56]} 7. Nxd4 {[%clk 0:02:59]}  Ndxe5 {[%clk 0:02:50]} 8. O-O {[%clk 0:02:55]}  Bc5 {[%clk 0:02:40]} 9. Re1 {[%clk 0:02:34]}  O-O {[%clk 0:02:38]} 10. c3 {[%clk 0:02:23]}  a6 {[%clk 0:02:32]} 11. Bf1 {[%clk 0:02:21]}  Qf6 {[%clk 0:02:27]} 12. Be3 {[%clk 0:02:05]}  Ng4 {[%clk 0:02:22]} 13. Bd3 {[%clk 0:01:22]}  Nxe3 {[%clk 0:02:15]} 14. fxe3 {[%clk 0:01:23]}  Ne5 {[%clk 0:02:11]} 15. Be2 {[%clk 0:01:19]}  Qg5 {[%clk 0:02:05]} 16. Bf3 {[%clk 0:01:10]}  Nxf3+ {[%clk 0:02:01]} 17. Qxf3 {[%clk 0:01:11]}  c6 {[%clk 0:01:59]} 18. Nd2 {[%clk 0:01:08]}  Bd7 {[%clk 0:01:56]} 19. b4 {[%clk 0:01:07]}  Bb6 {[%clk 0:01:52]} 20. a4 {[%clk 0:01:06]}  Rae8 {[%clk 0:01:52]} 21. a5 {[%clk 0:01:04]}  Bc7 {[%clk 0:01:52]} 22. N2b3 {[%clk 0:00:50]}  Re7 {[%clk 0:01:50]} 23. Nc5 {[%clk 0:00:48]}  Bc8 {[%clk 0:01:50]} 24. Ra2 {[%clk 0:00:40]}  Rfe8 {[%clk 0:01:47]} 25. Rf2 {[%clk 0:00:02]}  Bg4 {[%clk 0:01:41]} 0-1

[Event "November 21 Late 2023"]
[Site "https://www.chess.com"]
[Date "2023.11.21"]
[Round "2"]
[White "2k28Lakers"]
[Black "Saim, Mohamed Ilias"]
[Result "0-1"]
[Board "81"]
[TimeControl "180+1"]
[BlackFideId "7900465"]
[WhiteElo "2645"]
[BlackElo "2063"]
[BlackTeam "ALG"]
[WhiteClock "0:02:05"]
[BlackClock "0:01:05"]

1. e4 {[%clk 0:03:00]}  c5 {[%clk 0:02:59]} 2. c3 {[%clk 0:03:00]}  d5 {[%clk 0:02:58]} 3. exd5 {[%clk 0:03:01]}  Qxd5 {[%clk 0:02:59]} 4. Nf3 {[%clk 0:03:02]}  Nf6 {[%clk 0:02:58]} 5. Na3 {[%clk 0:03:02]}  a6 {[%clk 0:02:56]} 6. Nc2 {[%clk 0:03:01]}  e5 {[%clk 0:02:54]} 7. Ne3 {[%clk 0:02:59]}  Qd6 {[%clk 0:02:46]} 8. d4 {[%clk 0:02:59]}  exd4 {[%clk 0:02:43]} 9. cxd4 {[%clk 0:02:59]}  cxd4 {[%clk 0:02:42]} 10. Qxd4 {[%clk 0:02:56]}  Qxd4 {[%clk 0:02:41]} 11. Nxd4 {[%clk 0:02:57]}  Bc5 {[%clk 0:02:38]} 12. Nb3 {[%clk 0:02:56]}  Bb4+ {[%clk 0:02:34]} 13. Bd2 {[%clk 0:02:56]}  Bxd2+ {[%clk 0:02:33]} 14. Nxd2 {[%clk 0:02:57]}  O-O {[%clk 0:02:31]} 15. Ndc4 {[%clk 0:02:55]}  Nbd7 {[%clk 0:02:24]} 16. O-O-O {[%clk 0:02:50]}  b5 {[%clk 0:02:22]} 17. Nd6 {[%clk 0:02:49]}  Ne5 {[%clk 0:02:18]} 18. Nxc8 {[%clk 0:02:43]}  Raxc8+ {[%clk 0:02:19]} 19. Kb1 {[%clk 0:02:43]}  Ne4 {[%clk 0:02:18]} 20. Re1 {[%clk 0:02:30]}  Nxf2 {[%clk 0:02:14]} 21. Rg1 {[%clk 0:02:31]}  Rfd8 {[%clk 0:01:59]} 22. Be2 {[%clk 0:02:18]}  Rd2 {[%clk 0:01:50]} 23. Nd1 {[%clk 0:02:04]}  Nxd1 {[%clk 0:01:31]} 24. Bxd1 {[%clk 0:02:05]}  Nd3 {[%clk 0:01:30]} 25. Bg4 {[%clk 0:02:06]}  Nxe1 {[%clk 0:01:05]} 26. Bxc8 {[%clk 0:02:05]}  Rd1# {[%clk 0:01:05]} 0-1